[Event "Late-Titled-Tuesday-Blitz-October-17-2023"]
[Site "Chess.com"]
[Date "2023.10.17"]
[Round "4"]
[White "cthulhuuu"]
[Black "stregachess"]
[Result "1-0"]
[WhiteElo "2413"]
[BlackElo "2078"]
[TimeControl "180+1"]
[EndTime "14:39:15 PDT"]
[Termination "cthulhuuu won on time"]

1. e4 {[%clk 0:03:00]} 1... c5 {[%clk 0:02:59.6]} 2. Nf3 {[%clk 0:03:00.7]} 2...
d6 {[%clk 0:03:00]} 3. g3 {[%clk 0:03:01.1]} 3... g6 {[%clk 0:02:59.5]} 4. Bg2
{[%clk 0:03:01.8]} 4... Bg7 {[%clk 0:03:00.1]} 5. O-O {[%clk 0:03:01.7]} 5...
Nf6 {[%clk 0:03:00.2]} 6. Re1 {[%clk 0:03:02.3]} 6... Nc6 {[%clk 0:02:59.3]} 7.
c3 {[%clk 0:03:02.3]} 7... Bg4 {[%clk 0:02:56.9]} 8. h3 {[%clk 0:03:00]} 8...
Bxf3 {[%clk 0:02:57]} 9. Qxf3 {[%clk 0:03:00.9]} 9... O-O {[%clk 0:02:56]} 10.
Qd1 {[%clk 0:03:01.6]} 10... Rc8 {[%clk 0:02:47.8]} 11. d4 {[%clk 0:02:59.2]}
11... cxd4 {[%clk 0:02:45.9]} 12. cxd4 {[%clk 0:03:00.1]} 12... Qb6 {[%clk
0:02:45.7]} 13. Be3 {[%clk 0:02:46.3]} 13... Qxb2 {[%clk 0:02:42.2]} 14. Nd2
{[%clk 0:02:46.4]} 14... Qa3 {[%clk 0:02:20.2]} 15. Nc4 {[%clk 0:02:30.9]} 15...
Qa6 {[%clk 0:02:19.8]} 16. Bf1 {[%clk 0:02:30.8]} 16... b5 {[%clk 0:02:19.5]}
17. Nd2 {[%clk 0:02:16.4]} 17... Qb7 {[%clk 0:02:17.5]} 18. Rb1 {[%clk
0:02:11.9]} 18... a6 {[%clk 0:02:17.7]} 19. a4 {[%clk 0:02:12]} 19... b4 {[%clk
0:02:16.3]} 20. d5 {[%clk 0:02:11.8]} 20... Ne5 {[%clk 0:02:14.6]} 21. f4 {[%clk
0:02:09.4]} 21... Ned7 {[%clk 0:02:10]} 22. a5 {[%clk 0:02:05.2]} 22... Nc5
{[%clk 0:02:03.4]} 23. Bf2 {[%clk 0:01:50.2]} 23... Rc7 {[%clk 0:01:54.8]} 24.
g4 {[%clk 0:01:17.4]} 24... Rb8 {[%clk 0:01:44.9]} 25. g5 {[%clk 0:01:17.4]}
25... Nh5 {[%clk 0:01:29.2]} 26. Be3 {[%clk 0:01:16.2]} 26... Qc8 {[%clk
0:01:24.9]} 27. Qg4 {[%clk 0:01:06.7]} 27... Bc3 {[%clk 0:01:22.1]} 28. f5
{[%clk 0:00:50.2]} 28... Ng7 {[%clk 0:01:17.4]} 29. fxg6 {[%clk 0:00:40]} 29...
hxg6 {[%clk 0:01:15.7]} 30. Qg2 {[%clk 0:00:33.3]} 30... e6 {[%clk 0:00:46.7]}
31. Red1 {[%clk 0:00:32.2]} 31... exd5 {[%clk 0:00:46.4]} 32. exd5 {[%clk
0:00:31.8]} 32... Re7 {[%clk 0:00:45.7]} 33. Bf4 {[%clk 0:00:29.1]} 33... Qf5
{[%clk 0:00:34.4]} 34. Bxd6 {[%clk 0:00:23.6]} 34... Bd4+ {[%clk 0:00:23.8]} 35.
Kh1 {[%clk 0:00:24.1]} 35... Re3 {[%clk 0:00:22.5]} 36. Bxb8 {[%clk 0:00:22.5]}
36... Rxh3+ {[%clk 0:00:21.9]} 37. Qxh3 {[%clk 0:00:23]} 37... Qxd5+ {[%clk
0:00:20.1]} 38. Bg2 {[%clk 0:00:22.8]} 38... Qd8 {[%clk 0:00:18.5]} 39. Nf3
{[%clk 0:00:23.3]} 39... Qxb8 {[%clk 0:00:16.5]} 40. Nxd4 {[%clk 0:00:22.2]}
40... b3 {[%clk 0:00:12.8]} 41. Nc6 {[%clk 0:00:22.7]} 41... Qf8 {[%clk
0:00:08.1]} 42. Rd8 {[%clk 0:00:22.7]} 42... Ne8 {[%clk 0:00:07]} 43. Re1 {[%clk
0:00:23.6]} 43... Ne6 {[%clk 0:00:06.8]} 44. Rxe6 {[%clk 0:00:20.4]} 44... fxe6
{[%clk 0:00:06.4]} 45. Qxe6+ {[%clk 0:00:21.3]} 45... Kg7 {[%clk 0:00:05.4]} 46.
Rxe8 {[%clk 0:00:17.9]} 1-0

[Event "Late-Titled-Tuesday-Blitz-October-17-2023"]
[Site "Chess.com"]
[Date "2023.10.17"]
[Round "4"]
[White "gahryman"]
[Black "tptagain"]
[Result "0-1"]
[WhiteElo "2673"]
[BlackElo "2911"]
[TimeControl "180+1"]
[EndTime "14:39:22 PDT"]
[Termination "tptagain won by resignation"]

1. e4 {[%clk 0:03:00.9]} 1... c5 {[%clk 0:02:59.5]} 2. Nc3 {[%clk 0:02:59.5]}
2... Nc6 {[%clk 0:02:59.5]} 3. Bc4 {[%clk 0:02:57.1]} 3... e6 {[%clk 0:02:58.7]}
4. d3 {[%clk 0:02:57.4]} 4... Nf6 {[%clk 0:02:58.7]} 5. a3 {[%clk 0:02:58]} 5...
d5 {[%clk 0:02:58.1]} 6. Bb5 {[%clk 0:02:53.2]} 6... Bd7 {[%clk 0:02:54.6]} 7.
Nf3 {[%clk 0:02:49.4]} 7... a6 {[%clk 0:02:45.5]} 8. Bxc6 {[%clk 0:02:47.3]}
8... Bxc6 {[%clk 0:02:46.4]} 9. Ne5 {[%clk 0:02:47.5]} 9... Rc8 {[%clk
0:02:46.3]} 10. O-O {[%clk 0:02:46.5]} 10... Be7 {[%clk 0:02:46.1]} 11. Nxc6
{[%clk 0:02:34.7]} 11... Rxc6 {[%clk 0:02:46]} 12. e5 {[%clk 0:02:30.7]} 12...
Nd7 {[%clk 0:02:44.8]} 13. Qg4 {[%clk 0:02:31.4]} 13... g6 {[%clk 0:02:39.4]}
14. Bf4 {[%clk 0:02:21.5]} 14... h5 {[%clk 0:02:34.2]} 15. Qe2 {[%clk
0:02:18.3]} 15... b5 {[%clk 0:02:19.3]} 16. h3 {[%clk 0:02:12.5]} 16... Rc8
{[%clk 0:02:11.9]} 17. Rae1 {[%clk 0:02:08.7]} 17... Nb8 {[%clk 0:02:11.4]} 18.
Nb1 {[%clk 0:01:52.3]} 18... Nc6 {[%clk 0:02:07.5]} 19. c3 {[%clk 0:01:52.5]}
19... g5 {[%clk 0:01:55.3]} 20. Bh2 {[%clk 0:01:51.7]} 20... Kd7 {[%clk
0:01:43]} 21. Nd2 {[%clk 0:01:49]} 21... Qg8 {[%clk 0:01:38.9]} 22. Qe3 {[%clk
0:01:15.3]} 22... d4 {[%clk 0:00:40.7]} 23. cxd4 {[%clk 0:01:10.4]} 23... Nxd4
{[%clk 0:00:37.9]} 24. Rc1 {[%clk 0:01:00.6]} 24... Qg6 {[%clk 0:00:24.5]} 25.
Ne4 {[%clk 0:00:58.5]} 25... Nf5 {[%clk 0:00:21.4]} 26. Qd2 {[%clk 0:00:52.6]}
26... g4 {[%clk 0:00:20.4]} 27. h4 {[%clk 0:00:52]} 27... Rhd8 {[%clk
0:00:19.5]} 28. Qa5 {[%clk 0:00:42.8]} 28... Ke8 {[%clk 0:00:18]} 29. Qxa6
{[%clk 0:00:43]} 29... Nd4 {[%clk 0:00:18.4]} 30. Rfe1 {[%clk 0:00:34.8]} 30...
Kf8 {[%clk 0:00:18.8]} 31. Bg3 {[%clk 0:00:21.4]} 31... Kg7 {[%clk 0:00:18.8]}
32. Kh2 {[%clk 0:00:21.4]} 32... Qf5 {[%clk 0:00:16.6]} 33. Qb7 {[%clk
0:00:21.3]} 33... Bf8 {[%clk 0:00:13.9]} 34. Nd6 {[%clk 0:00:21.1]} 34... Bxd6
{[%clk 0:00:13.5]} 35. exd6 {[%clk 0:00:22]} 35... Kh7 {[%clk 0:00:05]} 36. Re5
{[%clk 0:00:21.6]} 36... Qg6 {[%clk 0:00:05]} 37. Rg5 {[%clk 0:00:21.3]} 37...
Qf6 {[%clk 0:00:03.2]} 38. Rxh5+ {[%clk 0:00:21.6]} 38... Kg6 {[%clk 0:00:03.7]}
39. Rg5+ {[%clk 0:00:21.7]} 39... Kh7 {[%clk 0:00:04.3]} 40. Be5 {[%clk
0:00:21.2]} 40... Qxf2 {[%clk 0:00:04]} 41. Rg7+ {[%clk 0:00:19.1]} 41... Kh6
{[%clk 0:00:04]} 42. Qxf7 {[%clk 0:00:17.7]} 42... Nf3+ {[%clk 0:00:02.5]} 43.
Qxf3 {[%clk 0:00:12.2]} 43... gxf3 {[%clk 0:00:03.4]} 44. Rg5 {[%clk 0:00:09.3]}
44... Qxh4+ {[%clk 0:00:02.7]} 45. Kg1 {[%clk 0:00:09.8]} 45... Qxg5 {[%clk
0:00:03.4]} 0-1

[Event "Late-Titled-Tuesday-Blitz-October-17-2023"]
[Site "Chess.com"]
[Date "2023.10.17"]
[Round "4"]
[White "Hasangatin_Ramil"]
[Black "as9killer2"]
[Result "1-0"]
[WhiteElo "2717"]
[BlackElo "2513"]
[TimeControl "180+1"]
[EndTime "14:39:22 PDT"]
[Termination "Hasangatin_Ramil won on time"]

1. e4 {[%clk 0:03:00.9]} 1... d6 {[%clk 0:02:59.6]} 2. d4 {[%clk 0:03:00.5]}
2... Nf6 {[%clk 0:02:59.8]} 3. Nc3 {[%clk 0:03:00.9]} 3... e5 {[%clk 0:03:00.3]}
4. dxe5 {[%clk 0:03:01.8]} 4... dxe5 {[%clk 0:03:01.2]} 5. Qxd8+ {[%clk
0:03:01.5]} 5... Kxd8 {[%clk 0:03:02.1]} 6. Bc4 {[%clk 0:03:01.5]} 6... Be6
{[%clk 0:03:01.9]} 7. Bxe6 {[%clk 0:03:00.8]} 7... fxe6 {[%clk 0:03:02.8]} 8. f3
{[%clk 0:03:01.4]} 8... Bd6 {[%clk 0:03:02.8]} 9. Nh3 {[%clk 0:03:00.4]} 9...
Ke7 {[%clk 0:03:02.8]} 10. Nf2 {[%clk 0:03:00.6]} 10... Nbd7 {[%clk 0:03:03.1]}
11. Nd3 {[%clk 0:02:59.7]} 11... a6 {[%clk 0:02:54.6]} 12. a4 {[%clk 0:02:59]}
12... c5 {[%clk 0:02:52.2]} 13. a5 {[%clk 0:02:55.2]} 13... c4 {[%clk
0:02:51.2]} 14. Nf2 {[%clk 0:02:52.8]} 14... Bb4 {[%clk 0:02:44.9]} 15. Bd2
{[%clk 0:02:52.5]} 15... Rac8 {[%clk 0:02:38.3]} 16. Na4 {[%clk 0:02:51.9]}
16... Bxd2+ {[%clk 0:02:31]} 17. Kxd2 {[%clk 0:02:52.8]} 17... Nc5 {[%clk
0:02:30]} 18. Nd1 {[%clk 0:02:42.6]} 18... Rhd8+ {[%clk 0:01:54]} 19. Kc3 {[%clk
0:02:35.3]} 19... Ne8 {[%clk 0:01:29.9]} 20. Nb6 {[%clk 0:02:18]} 20... Rc7
{[%clk 0:01:25.3]} 21. Nxc4 {[%clk 0:02:13.2]} 21... Nd6 {[%clk 0:01:21.6]} 22.
Nde3 {[%clk 0:02:01.5]} 22... Nb5+ {[%clk 0:01:20.2]} 23. Kb4 {[%clk 0:02:01.1]}
23... Nd4 {[%clk 0:01:15]} 24. c3 {[%clk 0:01:51.2]} 24... Nd3+ {[%clk
0:01:12.5]} 25. Ka3 {[%clk 0:01:49.3]} 25... Nb5+ {[%clk 0:00:56.9]} 26. Kb3
{[%clk 0:01:46.1]} 26... Rdc8 {[%clk 0:00:54.5]} 27. Rhd1 {[%clk 0:01:40]} 27...
Nc5+ {[%clk 0:00:54.3]} 28. Kc2 {[%clk 0:01:39.5]} 28... Nd7 {[%clk 0:00:46.2]}
29. Rxd7+ {[%clk 0:01:08.2]} 29... Rxd7 {[%clk 0:00:44.1]} 30. Nxe5 {[%clk
0:01:08.3]} 30... Rdc7 {[%clk 0:00:44]} 31. Kd3 {[%clk 0:00:59.9]} 31... Rd8+
{[%clk 0:00:43.4]} 32. Ke2 {[%clk 0:00:59.8]} 32... Rc5 {[%clk 0:00:40.9]} 33.
Nd3 {[%clk 0:00:56.5]} 33... Rh5 {[%clk 0:00:40.3]} 34. h3 {[%clk 0:00:55.6]}
34... Nd6 {[%clk 0:00:40.2]} 35. b4 {[%clk 0:00:48.5]} 35... Rc8 {[%clk
0:00:39]} 36. Kd2 {[%clk 0:00:48.4]} 36... Nb5 {[%clk 0:00:38.6]} 37. Rc1 {[%clk
0:00:46.7]} 37... Rg5 {[%clk 0:00:35.2]} 38. g4 {[%clk 0:00:46]} 38... e5 {[%clk
0:00:33.4]} 39. h4 {[%clk 0:00:45.4]} 39... Rg6 {[%clk 0:00:30.6]} 40. Nxe5
{[%clk 0:00:45.4]} 40... Rd6+ {[%clk 0:00:29.4]} 41. Nd5+ {[%clk 0:00:45.4]}
41... Ke6 {[%clk 0:00:29]} 42. Nd3 {[%clk 0:00:45.8]} 42... Rxd5 {[%clk
0:00:27.5]} 43. exd5+ {[%clk 0:00:45]} 43... Kxd5 {[%clk 0:00:27.8]} 44. c4+
{[%clk 0:00:38]} 44... Rxc4 {[%clk 0:00:27.8]} 45. Nf4+ {[%clk 0:00:38.2]} 45...
Kd4 {[%clk 0:00:28.3]} 46. Ne6+ {[%clk 0:00:38.1]} 46... Kd5 {[%clk 0:00:28.6]}
47. Rxc4 {[%clk 0:00:36]} 47... Kxc4 {[%clk 0:00:29]} 48. Nxg7 {[%clk
0:00:36.9]} 48... Kxb4 {[%clk 0:00:28.3]} 49. g5 {[%clk 0:00:35.5]} 49... Nd4
{[%clk 0:00:27]} 50. Ke3 {[%clk 0:00:34.2]} 50... Nc6 {[%clk 0:00:26.1]} 51. f4
{[%clk 0:00:33.4]} 51... Kc5 {[%clk 0:00:21.6]} 52. Ke4 {[%clk 0:00:31.5]} 52...
Kd6 {[%clk 0:00:21.6]} 53. Nf5+ {[%clk 0:00:31.6]} 53... Ke6 {[%clk 0:00:21.7]}
54. Nd4+ {[%clk 0:00:31.6]} 54... Nxd4 {[%clk 0:00:21.9]} 55. Kxd4 {[%clk
0:00:31.9]} 55... Kf5 {[%clk 0:00:22.5]} 56. h5 {[%clk 0:00:32.2]} 1-0

[Event "Late-Titled-Tuesday-Blitz-October-17-2023"]
[Site "Chess.com"]
[Date "2023.10.17"]
[Round "4"]
[White "ArtemDyachuk"]
[Black "Payyappat"]
[Result "1-0"]
[WhiteElo "2682"]
[BlackElo "2474"]
[TimeControl "180+1"]
[EndTime "14:39:25 PDT"]
[Termination "ArtemDyachuk won by checkmate"]

1. e4 {[%clk 0:03:00.8]} 1... c6 {[%clk 0:03:00]} 2. d4 {[%clk 0:03:00.2]} 2...
d5 {[%clk 0:03:00.9]} 3. e5 {[%clk 0:02:59.9]} 3... Bf5 {[%clk 0:03:00.4]} 4.
Nf3 {[%clk 0:02:56.9]} 4... e6 {[%clk 0:03:00.1]} 5. Be2 {[%clk 0:02:55.8]} 5...
Ne7 {[%clk 0:02:56.7]} 6. Nbd2 {[%clk 0:02:53.2]} 6... Ng6 {[%clk 0:02:56.7]} 7.
Nb3 {[%clk 0:02:53.5]} 7... c5 {[%clk 0:02:56]} 8. dxc5 {[%clk 0:02:52.7]} 8...
Bxc5 {[%clk 0:02:54.9]} 9. Nxc5 {[%clk 0:02:47.2]} 9... Qa5+ {[%clk 0:02:54.6]}
10. c3 {[%clk 0:02:36.9]} 10... Qxc5 {[%clk 0:02:52.2]} 11. Be3 {[%clk
0:02:26.5]} 11... Qc7 {[%clk 0:02:51.8]} 12. Nd4 {[%clk 0:01:52.5]} 12... Qxe5
{[%clk 0:02:36]} 13. Qa4+ {[%clk 0:01:46.2]} 13... Nd7 {[%clk 0:02:33]} 14. Bb5
{[%clk 0:01:40]} 14... Rd8 {[%clk 0:02:10.1]} 15. Qxa7 {[%clk 0:01:30.3]} 15...
O-O {[%clk 0:02:08.1]} 16. O-O {[%clk 0:01:10]} 16... Be4 {[%clk 0:01:47.2]} 17.
Rae1 {[%clk 0:00:48.1]} 17... Ra8 {[%clk 0:01:08.7]} 18. Qxb7 {[%clk 0:00:46.4]}
18... Nc5 {[%clk 0:01:08.9]} 19. Qb6 {[%clk 0:00:44]} 19... Nd3 {[%clk
0:01:05.4]} 20. Nc6 {[%clk 0:00:13.6]} 20... Qf6 {[%clk 0:00:33.4]} 21. f3
{[%clk 0:00:13.6]} 21... Bf5 {[%clk 0:00:20.6]} 22. Re2 {[%clk 0:00:08.5]} 22...
Ngf4 {[%clk 0:00:19.7]} 23. Rd2 {[%clk 0:00:06.8]} 23... Qg6 {[%clk 0:00:18.9]}
24. Ne7+ {[%clk 0:00:05]} 24... Kh8 {[%clk 0:00:18.4]} 25. Nxg6+ {[%clk
0:00:05.9]} 25... hxg6 {[%clk 0:00:18.5]} 26. Bxf4 {[%clk 0:00:04.5]} 26... Nxf4
{[%clk 0:00:19.4]} 27. a4 {[%clk 0:00:04.9]} 27... Rfb8 {[%clk 0:00:17.8]} 28.
Qe3 {[%clk 0:00:04.8]} 28... g5 {[%clk 0:00:18.2]} 29. g3 {[%clk 0:00:04.6]}
29... Nh3+ {[%clk 0:00:17.5]} 30. Kg2 {[%clk 0:00:05]} 30... f6 {[%clk
0:00:15.8]} 31. g4 {[%clk 0:00:05]} 31... Nf4+ {[%clk 0:00:16]} 32. Qxf4 {[%clk
0:00:05.2]} 32... gxf4 {[%clk 0:00:16.1]} 33. gxf5 {[%clk 0:00:06.1]} 33... exf5
{[%clk 0:00:16.8]} 34. Rxd5 {[%clk 0:00:06.1]} 34... g6 {[%clk 0:00:16.9]} 35.
Rfd1 {[%clk 0:00:05.6]} 35... Kh7 {[%clk 0:00:15.9]} 36. Rd7+ {[%clk 0:00:05.6]}
36... Kh6 {[%clk 0:00:16.5]} 37. R1d6 {[%clk 0:00:05.9]} 37... Rf8 {[%clk
0:00:12.8]} 38. b4 {[%clk 0:00:04.4]} 38... Rae8 {[%clk 0:00:13.2]} 39. Kf2
{[%clk 0:00:03.8]} 39... Re3 {[%clk 0:00:13.4]} 40. Rd3 {[%clk 0:00:03.6]} 40...
Re5 {[%clk 0:00:13.7]} 41. R7d5 {[%clk 0:00:03.3]} 41... Re6 {[%clk 0:00:13.8]}
42. a5 {[%clk 0:00:03.7]} 42... Rf7 {[%clk 0:00:11.1]} 43. a6 {[%clk 0:00:03]}
43... Rfe7 {[%clk 0:00:11.5]} 44. Rd2 {[%clk 0:00:02.9]} 44... Rb6 {[%clk
0:00:11.1]} 45. Bf1 {[%clk 0:00:02.2]} 45... Re3 {[%clk 0:00:10]} 46. b5 {[%clk
0:00:02]} 46... Rxc3 {[%clk 0:00:09.7]} 47. Rd6 {[%clk 0:00:02.4]} 47... Rb8
{[%clk 0:00:09.3]} 48. a7 {[%clk 0:00:02.5]} 48... Ra8 {[%clk 0:00:09.8]} 49. b6
{[%clk 0:00:03]} 49... Rb3 {[%clk 0:00:10.4]} 50. Ba6 {[%clk 0:00:02.5]} 50...
Re8 {[%clk 0:00:09.6]} 51. Rd8 {[%clk 0:00:02.3]} 51... Ree3 {[%clk 0:00:10]}
52. a8=Q {[%clk 0:00:02]} 52... Rb1 {[%clk 0:00:10.1]} 53. Rh8+ {[%clk
0:00:01.2]} 53... Kg5 {[%clk 0:00:11]} 54. h4# {[%clk 0:00:01.6]} 1-0

[Event "Late-Titled-Tuesday-Blitz-October-17-2023"]
[Site "Chess.com"]
[Date "2023.10.17"]
[Round "4"]
[White "wgraif"]
[Black "AsaHoffmann"]
[Result "1-0"]
[WhiteElo "2513"]
[BlackElo "2335"]
[TimeControl "180+1"]
[EndTime "14:39:28 PDT"]
[Termination "wgraif won by resignation"]

1. e4 {[%clk 0:03:00.9]} 1... d6 {[%clk 0:02:58.2]} 2. Nc3 {[%clk 0:02:58]} 2...
c6 {[%clk 0:02:52.7]} 3. f4 {[%clk 0:02:54.7]} 3... g6 {[%clk 0:02:50.8]} 4. Nf3
{[%clk 0:02:54.5]} 4... Bg7 {[%clk 0:02:50.7]} 5. d3 {[%clk 0:02:35.1]} 5... b5
{[%clk 0:02:46.8]} 6. h3 {[%clk 0:02:27.1]} 6... Nf6 {[%clk 0:02:43.8]} 7. g4
{[%clk 0:02:26.8]} 7... b4 {[%clk 0:02:40.1]} 8. Ne2 {[%clk 0:02:25.9]} 8... a5
{[%clk 0:02:39.8]} 9. Bg2 {[%clk 0:02:22.6]} 9... Qb6 {[%clk 0:02:37.8]} 10. f5
{[%clk 0:01:55.3]} 10... Nfd7 {[%clk 0:02:32.9]} 11. Bg5 {[%clk 0:01:43.3]}
11... h6 {[%clk 0:02:30.3]} 12. Bd2 {[%clk 0:01:34.3]} 12... Bxb2 {[%clk
0:02:28.9]} 13. Rb1 {[%clk 0:01:32.6]} 13... Bg7 {[%clk 0:02:28.2]} 14. fxg6
{[%clk 0:01:31.1]} 14... fxg6 {[%clk 0:02:27.8]} 15. Nf4 {[%clk 0:01:31.6]}
15... Nf8 {[%clk 0:02:26.8]} 16. Qe2 {[%clk 0:01:26.6]} 16... Nbd7 {[%clk
0:02:18.7]} 17. Be3 {[%clk 0:01:23]} 17... Qb5 {[%clk 0:02:14.4]} 18. O-O {[%clk
0:01:20.5]} 18... Ba6 {[%clk 0:02:12.3]} 19. Nh4 {[%clk 0:01:03.4]} 19... g5
{[%clk 0:02:07.4]} 20. Nh5 {[%clk 0:01:02.4]} 20... Be5 {[%clk 0:02:01]} 21. Nf5
{[%clk 0:00:54.7]} 21... Ne6 {[%clk 0:01:54.1]} 22. c4 {[%clk 0:00:45.7]} 22...
Qb7 {[%clk 0:01:39.8]} 23. d4 {[%clk 0:00:44]} 23... Bf6 {[%clk 0:01:35.6]} 24.
e5 {[%clk 0:00:39.6]} 24... dxe5 {[%clk 0:01:32.7]} 25. d5 {[%clk 0:00:38.2]}
25... Nd8 {[%clk 0:01:23.5]} 26. d6 {[%clk 0:00:29.9]} 26... Ne6 {[%clk
0:01:07.9]} 27. dxe7 {[%clk 0:00:25.2]} 27... Bxe7 {[%clk 0:01:07]} 28. Nhg7+
{[%clk 0:00:23.7]} 28... Nxg7 {[%clk 0:01:03.5]} 29. Nxg7+ {[%clk 0:00:24.6]}
29... Kd8 {[%clk 0:01:03.8]} 30. Rbd1 {[%clk 0:00:24.7]} 30... Ra7 {[%clk
0:00:58.5]} 31. Rf7 {[%clk 0:00:23.4]} 31... b3 {[%clk 0:00:52.1]} 32. axb3
{[%clk 0:00:22.5]} 32... Qxb3 {[%clk 0:00:51.8]} 33. Bxa7 {[%clk 0:00:22.2]}
33... Bxc4 {[%clk 0:00:51.2]} 34. Qd2 {[%clk 0:00:20.9]} 34... Qb7 {[%clk
0:00:44.3]} 35. Be3 {[%clk 0:00:20.5]} 35... Bxf7 {[%clk 0:00:43.9]} 36. Nf5
{[%clk 0:00:20.1]} 36... Bb4 {[%clk 0:00:42.7]} 37. Qf2 {[%clk 0:00:17.6]} 37...
Rf8 {[%clk 0:00:40.4]} 38. Qc2 {[%clk 0:00:17.7]} 38... Bd5 {[%clk 0:00:39.2]}
39. Bxd5 {[%clk 0:00:15.6]} 39... cxd5 {[%clk 0:00:39]} 40. Qb3 {[%clk
0:00:14.1]} 40... d4 {[%clk 0:00:37.5]} 41. Bf2 {[%clk 0:00:12.6]} 41... Qc6
{[%clk 0:00:36.7]} 42. Qb2 {[%clk 0:00:11.2]} 42... Qc3 {[%clk 0:00:35.7]} 43.
Qe2 {[%clk 0:00:10.8]} 43... Qxh3 {[%clk 0:00:34]} 44. Rc1 {[%clk 0:00:10.5]}
44... Rxf5 {[%clk 0:00:33.6]} 45. gxf5 {[%clk 0:00:10.4]} 45... Qxf5 {[%clk
0:00:33.4]} 46. Qc4 {[%clk 0:00:09.3]} 46... Qe4 {[%clk 0:00:30.8]} 47. Qg8+
{[%clk 0:00:07.9]} 47... Ke7 {[%clk 0:00:30.4]} 48. Qg7+ {[%clk 0:00:07.2]}
48... Ke6 {[%clk 0:00:30.5]} 49. Qg8+ {[%clk 0:00:06.9]} 49... Kf6 {[%clk
0:00:28.7]} 50. Rf1 {[%clk 0:00:05.3]} 50... Ke7 {[%clk 0:00:27.1]} 51. Bg3
{[%clk 0:00:04.8]} 51... Qe3+ {[%clk 0:00:26.3]} 52. Kh2 {[%clk 0:00:04.7]}
52... Qe2+ {[%clk 0:00:24.9]} 53. Rf2 {[%clk 0:00:05.3]} 53... Qh5+ {[%clk
0:00:24.7]} 54. Kg2 {[%clk 0:00:06]} 54... e4 {[%clk 0:00:24.1]} 55. Qg7+ {[%clk
0:00:05.8]} 55... Kd8 {[%clk 0:00:23.1]} 56. Qg8+ {[%clk 0:00:05.5]} 56... Ke7
{[%clk 0:00:18.1]} 57. Qg7+ {[%clk 0:00:05.9]} 57... Ke6 {[%clk 0:00:18]} 58.
Qxd4 {[%clk 0:00:05.8]} 58... Bc5 {[%clk 0:00:16.6]} 59. Qxe4+ {[%clk
0:00:05.8]} 1-0

[Event "Late-Titled-Tuesday-Blitz-October-17-2023"]
[Site "Chess.com"]
[Date "2023.10.17"]
[Round "4"]
[White "acertijo08"]
[Black "maximnovik"]
[Result "1/2-1/2"]
[WhiteElo "2342"]
[BlackElo "2503"]
[TimeControl "180+1"]
[EndTime "14:39:31 PDT"]
[Termination "Game drawn - insufficient material"]

1. e4 {[%clk 0:03:00.9]} 1... c6 {[%clk 0:02:59.7]} 2. d4 {[%clk 0:03:00]} 2...
d5 {[%clk 0:03:00]} 3. Nd2 {[%clk 0:02:58.9]} 3... dxe4 {[%clk 0:02:59.9]} 4.
Nxe4 {[%clk 0:02:59.1]} 4... Bf5 {[%clk 0:03:00.6]} 5. Ng3 {[%clk 0:02:58.2]}
5... Bg6 {[%clk 0:03:00.8]} 6. h4 {[%clk 0:02:58.1]} 6... h6 {[%clk 0:03:01]} 7.
Nf3 {[%clk 0:02:58.5]} 7... e6 {[%clk 0:03:01]} 8. Ne5 {[%clk 0:02:57.7]} 8...
Bh7 {[%clk 0:03:01.2]} 9. c3 {[%clk 0:02:52]} 9... Nd7 {[%clk 0:03:00.7]} 10. f4
{[%clk 0:02:44.3]} 10... Be7 {[%clk 0:02:58.3]} 11. Be3 {[%clk 0:02:42.2]} 11...
Bxh4 {[%clk 0:02:57.5]} 12. Bf2 {[%clk 0:02:42.4]} 12... Bxg3 {[%clk 0:02:55.3]}
13. Bxg3 {[%clk 0:02:42.4]} 13... Ngf6 {[%clk 0:02:55.5]} 14. Bd3 {[%clk
0:02:33.4]} 14... Bxd3 {[%clk 0:02:49.2]} 15. Qxd3 {[%clk 0:02:33.8]} 15... Qa5
{[%clk 0:02:49.4]} 16. O-O {[%clk 0:02:24.7]} 16... O-O {[%clk 0:02:35.3]} 17.
f5 {[%clk 0:02:22.3]} 17... Rad8 {[%clk 0:02:30.1]} 18. fxe6 {[%clk 0:02:20.6]}
18... Nxe5 {[%clk 0:02:29.8]} 19. Bxe5 {[%clk 0:02:15.1]} 19... Qxe5 {[%clk
0:02:26.6]} 20. dxe5 {[%clk 0:02:13]} 20... Rxd3 {[%clk 0:02:25.7]} 21. exf6
{[%clk 0:02:13]} 21... fxe6 {[%clk 0:02:22]} 22. fxg7 {[%clk 0:02:10.8]} 22...
Rxf1+ {[%clk 0:02:21.7]} 23. Rxf1 {[%clk 0:02:05.9]} 23... Rd2 {[%clk 0:02:14]}
24. Rf6 {[%clk 0:01:59.8]} 24... Kxg7 {[%clk 0:02:12.7]} 25. Rxe6 {[%clk
0:01:59.7]} 25... Rxb2 {[%clk 0:02:12.8]} 26. a4 {[%clk 0:01:53.8]} 26... h5
{[%clk 0:02:07.2]} 27. Kh2 {[%clk 0:01:52.7]} 27... Kf7 {[%clk 0:02:04.7]} 28.
Rh6 {[%clk 0:01:51.7]} 28... Ke7 {[%clk 0:01:47.5]} 29. Rxh5 {[%clk 0:01:49.6]}
29... Kd6 {[%clk 0:01:47.1]} 30. Rh7 {[%clk 0:01:46.8]} 30... a5 {[%clk
0:01:45.6]} 31. Kh3 {[%clk 0:01:42.9]} 31... Kc5 {[%clk 0:01:45.2]} 32. g4
{[%clk 0:01:41.8]} 32... Kc4 {[%clk 0:01:42.6]} 33. g5 {[%clk 0:01:38.4]} 33...
Rb1 {[%clk 0:01:39.9]} 34. Kg2 {[%clk 0:01:37]} 34... Rb2+ {[%clk 0:01:36.4]}
35. Kh3 {[%clk 0:01:35.6]} 35... Rb1 {[%clk 0:01:00.6]} 36. Kh2 {[%clk
0:01:17.6]} 36... c5 {[%clk 0:00:51.4]} 37. g6 {[%clk 0:00:38.2]} 37... Rb6
{[%clk 0:00:50.6]} 38. Rh4+ {[%clk 0:00:38.4]} 38... Kxc3 {[%clk 0:00:46.4]} 39.
Rg4 {[%clk 0:00:39]} 39... Rc6 {[%clk 0:00:43.3]} 40. g7 {[%clk 0:00:38.5]}
40... Rc8 {[%clk 0:00:43]} 41. g8=Q {[%clk 0:00:35.3]} 41... Rxg8 {[%clk
0:00:42.8]} 42. Rxg8 {[%clk 0:00:36.2]} 42... Kb4 {[%clk 0:00:42.9]} 43. Rg5
{[%clk 0:00:33.1]} 43... Kxa4 {[%clk 0:00:42.3]} 44. Rxc5 {[%clk 0:00:33.2]}
44... b5 {[%clk 0:00:42]} 45. Kg2 {[%clk 0:00:32.1]} 45... Kb4 {[%clk 0:00:42]}
46. Rc8 {[%clk 0:00:26.7]} 46... a4 {[%clk 0:00:42.9]} 47. Kf2 {[%clk
0:00:25.8]} 47... a3 {[%clk 0:00:42]} 48. Ke2 {[%clk 0:00:23.7]} 48... a2 {[%clk
0:00:38.7]} 49. Ra8 {[%clk 0:00:22.8]} 49... Kb3 {[%clk 0:00:38.9]} 50. Kd3
{[%clk 0:00:22.5]} 50... b4 {[%clk 0:00:37.1]} 51. Ra7 {[%clk 0:00:19]} 51...
Kb2 {[%clk 0:00:35.1]} 52. Kc4 {[%clk 0:00:17.5]} 52... b3 {[%clk 0:00:35.4]}
53. Ra8 {[%clk 0:00:15.1]} 53... Kc2 {[%clk 0:00:32.6]} 54. Ra3 {[%clk
0:00:06.7]} 54... a1=Q {[%clk 0:00:20.9]} 55. Rxa1 {[%clk 0:00:06.6]} 55... b2
{[%clk 0:00:21.2]} 56. Ra2 {[%clk 0:00:07]} 56... Kc1 {[%clk 0:00:19.1]} 57.
Rxb2 {[%clk 0:00:05.5]} 57... Kxb2 {[%clk 0:00:19.1]} 1/2-1/2